Cogmind - Beta 16.1 @@@ ROGUE MODE // 2026.04.19 @ 16:17:30 Player: beans Result: Destroyed by MU-GDB(R) with Subdweller Shrapnel Launcher Performance ------------- Evolutions (0) 0 Regions Visited (3) 600 Robots Destroyed (21) 105 Value Destroyed (345) 345 Prototype IDs (0) 0 Alien Tech Used (0) 0 Bonus (0) 0 TOTAL SCORE: 1050 Bonus ------- None Cogmind --------- Core Integrity 0/250 Matter 264/300 Energy 350/350 System Corruption 0% Temperature Cool (0) Movement Core (200) Ox3 Location -10/Subcaves Parts ------- > --- POWER (1) -------- (None) > --- PROPULSION (2) --- (None) > --- UTILITY (2) ------ Heat Sink High-capacity Battery > --- WEAPON (2) ------- Particle Gun Light Cannon > --- INVENTORY (5) ---- Particle Gun Assault Rifle Light Assault Rifle Rocket Launcher Ripper Peak State ------------ > --- POWER ------------ (None) > --- PROPULSION ------- Light Treads > --- UTILITY ---------- Heat Sink High-capacity Battery > --- WEAPON ----------- Light Cannon Ripper > --- INVENTORY -------- Propulsion Shielding Particle Gun Assault Rifle Light Assault Rifle [Rating: 8] Favorites ----------- Power Ion Engine Engine Ion Engine Propulsion Light Treads Treads Light Treads Utility Heat Sink Device Heat Sink Storage High-capacity Battery Weapon Light Cannon Energy Gun Particle Gun Ballistic Gun Assault Rifle Ballistic Cannon Light Cannon Slashing Weapon Ripper Build | -11 -10 -10 -10 ------- Run | Yrd Mat Min Sub Slots Evolved . | . . . . Power . | . . . . Propulsion . | . . . . Utility . | . . . . Weapon . | . . . . Parts Attached 10 | 3 5 2 . Power 1 | . 1 . . Engine 1 | . 1 . . Core . | . . . . Reactor . | . . . . Propulsion 2 | 2 . . . Treads 2 | 2 . . . Leg . | . . . . Wheel . | . . . . Hover . | . . . . Flight . | . . . . Utility 2 | . 2 . . Device 1 | . 1 . . Storage 1 | . 1 . . Processor . | . . . . Hackware . | . . . . Protection . | . . . . Artifact . | . . . . Weapon 5 | 1 2 2 . Energy Gun 2 | . 1 1 . Energy Cannon . | . . . . Ballistic Gun 1 | 1 . . . Ballistic Cannon 1 | . 1 . . Launcher . | . . . . Special Weapon . | . . . . Impact Weapon . | . . . . Slashing Weapon 1 | . . 1 . Piercing Weapon . | . . . . Special Melee Weapon . | . . . . Unidentified Prototypes . | . . . . Parts Lost 3 | . 2 1 . Power 1 | . 1 . . Propulsion 2 | . 1 1 . Utility . | . . . . Weapon . | . . . . Highest Loss Streak 2 | . 2 1 . To Critical Strikes . | . . . . Average Backups 3 | . . 4 5 Power . | . . . . Propulsion . | . . . . Utility . | . . . . Weapon 2 | . . 3 5 Tool/Special . | . . . . Unused Backups 3 | . . 1 2 Power . | . . . . Propulsion . | . . . . Utility 1 | . . 1 . Weapon 2 | . . . 2 Tool/Special . | . . . . Average Slot Usage (%) 61 | . 53 64 57 Treads 11 | . 22 7 . Device 12 | . 8 14 14 Storage 10 | . . 14 14 Energy Gun 7 | . 3 7 14 Ballistic Gun 3 | . 13 . . Ballistic Cannon 10 | . . 14 14 Slashing Weapon 4 | . . 6 . Peak Build Rating 8 | 3 6 8 6 Average Rating 5 | 1 4 6 6 On Entrance 3 | . 3 6 6 Avg Prop Armor Cover (%) . | . . . . Naked Turns . | . . . . Heaviest Build 11 | 2 11 11 11 Greatest Support 40 | 40 40 20 3 Greatest Overweight (x) 3 | . . 3 3 Average Overweight (x) . | . . 1 3 Largest Inventory Capacity 5 | 5 5 5 5 Average Capacity 5 | 5 5 5 5 Most Carried 5 | 3 3 5 5 Average Carried 3 | . . 4 5 Final Capacity 5 | 5 5 5 5 Final Carried 5 | . 2 5 5 Class Distribution -------------------- 100% | Mutant Dominant Class ---------------- Mutant | -10/Materials Mutant | -10/Mines Mutant | -10/Subcaves Resources | -11 -10 -10 -10 ----------- Run | Yrd Mat Min Sub Matter Collected 463 | 187 228 48 . Remotely . | . . . . Salvage Created 621 | . 397 197 27 Parts 54 | . 31 18 5 Haulers Intercepted 1 | . 1 . . Recyclers Shooed 1 | . 1 . . Parts Field Recycled . | . . . . Retrieved Matter . | . . . . Parts Self-Destructed . | . . . . Prevented . | . . . . Parts Restored . | . . . . Kills | -11 -10 -10 -10 ------- Run | Yrd Mat Min Sub Combat Hostiles Destroyed 10 | . 7 2 1 Melee 2 | . . 2 . Guns 8 | . 7 . 1 Classes Destroyed 8 | . 6 1 1 Worker 5 | . 3 2 . Builder 3 | . 1 2 . Tunneler 1 | . . 1 . Hauler 1 | . 1 . . Recycler 1 | . 1 . . Swarmer 3 | . 3 . . Grunt 6 | . 4 2 . Subdweller 1 | . . . 1 Best Kill Streak 4 | . 4 2 1 Combat Bots Only 2 | . 2 1 1 Max Kills in Single Turn 1 | . 1 1 1 Gunslinging . | . . . . Exploded . | . . . . Melee 1 | . . 1 . Uniques/NPCs Destroyed . | . . . . Combat | -11 -10 -10 -10 -------- Run | Yrd Mat Min Sub Hostile Shots Fired 81 | . 53 21 7 Missed 22 | . 16 5 1 Hits 59 | . 37 16 6 Projectile 59 | . 37 16 6 AOE 1 | . . . 1 Critical Strikes 1 | . . 1 . Damage Taken 816 | . 409 239 168 Core 250 | . 58 89 103 Absorbed by Shields . | . . . . Core Remaining (%) 100 | 100 . . . Volleys Fired 66 | . 57 3 6 Largest 2 | . 2 2 2 Hottest 95 | . 95 95 95 Shots Fired 82 | . 65 6 11 Gun 71 | . 63 3 5 Cannon 11 | . 2 3 6 Launcher . | . . . . Special . | . . . . Kinetic 66 | . 57 3 6 Thermal 16 | . 8 3 5 Explosive . | . . . . Electromagnetic . | . . . . Robot Hit Streak 9 | . 7 . 9 Robot Miss Streak 2 | . 2 . 1 Penetration Max . | . . . . Secondary Targets 1 | . 1 . . Max Gunslinging Chain 1 | . 1 . . Shots Hit Robots 66 | . 38 19 9 Core Hits 26 | . 19 4 3 Critical Kills 1 | . 1 . . Critical Parts Destroyed . | . . . . Critical Strikes 3 | . 2 1 . Burn 1 | . 1 . . Destroy 1 | . 1 . . Sever 1 | . . 1 . Melee Attacks 25 | . . 25 . Impact . | . . . . Slashing 25 | . . 25 . Piercing . | . . . . Sneak Attacks 7 | . . 7 . Combat Hostiles . | . . . . Follow-up Attacks . | . . . . Damage Inflicted 1600 | . 504 960 136 Guns 512 | . 469 . 43 Cannons 128 | . 35 . 93 Explosions . | . . . . Melee 960 | . . 960 . Ramming . | . . . . Kinetic 536 | . 443 . 93 Thermal 104 | . 61 . 43 Explosive . | . . . . Electromagnetic . | . . . . Impact . | . . . . Slashing 960 | . . 960 . Piercing . | . . . . Highest Corruption . | . . . . Average Corruption . | . . . . Corruption Purged . | . . . . Corruption Blocked . | . . . . Overload Shots . | . . . . Overflow Damage 291 | . . 291 . Projectiles . | . . . . Explosions . | . . . . Melee 291 | . . 291 . Knockbacks 1 | . . . 1 Impact . | . . . . Kinetic 1 | . . . 1 Secondary . | . . . . Self-Inflicted Damage . | . . . . Shots . | . . . . Rammed . | . . . . Targets Rammed . | . . . . Kicked . | . . . . Crushed . | . . . . Highest Temperature . | . . . . Average Temperature . | . . . . Received Heat Transfer 321 | . 165 156 . Siege Activations . | . . . . Martial Activations . | . . . . Shielding Activations . | . . . . Robots Disrupted . | . . . . Combat Hostiles . | . . . . Robots Corrupted . | . . . . Combat Hostiles . | . . . . Parts Fried . | . . . . Impact Corruptions . | . . . . Robots Melted . | . . . . Combat Hostiles . | . . . . Parts Melted . | . . . . Heat Transferred 333 | . 222 . 111 Parts Sabotaged . | . . . . Parts Stolen . | . . . . Parts Stripped . | . . . . Power Chain Reactions . | . . . . Alert | -11 -10 -10 -10 ------- Run | Yrd Mat Min Sub Maximum Alert Level . | . . . . Low Security (%) 100 | 100 100 100 . Level 1 . | . . . . Level 2 . | . . . . Level 3 . | . . . . Level 4 . | . . . . Level 5 . | . . . . High Security . | . . . . Max Security . | . . . . Peak Influence 100 | . 100 30 . Initial 27 | . . 27 . Average 12 | . 40 3 . Influence Increases 311 | . 220 91 . Destroy 0b10 Robot/C 180 | . 140 40 . Destroy 0b10 Robot/NC 55 | . 30 25 . Destroy Leader 42 | . 32 10 . Successful Hack 2 | . 2 . . Disable Machine 15 | . . 15 . Destroy Structure 2 | . 1 1 . Lose Combat Pursuer 15 | . 15 . . Influence Decreases 311 | . 148 163 . Entered New Map 45 | . . 45 . Time Decay 236 | . 128 108 . Lost Part 30 | . 20 10 . Squads Dispatched 1 | . 1 . . Investigation . | . . . . Extermination . | . . . . Reinforcement 1 | . 1 . . Assault . | . . . . Garrison . | . . . . Intercept . | . . . . Searches Triggered . | . . . . Construction Impeded . | . . . . Haulers Reinforced . | . . . . Active Scanning Responses . | . . . . Cargo Convoy Interrupts . | . . . . Stealth | -11 -10 -10 -10 --------- Run | Yrd Mat Min Sub Distress Signals . | . . . . Communications Jammed . | . . . . Distress Signals . | . . . . Times Spotted 15 | . 11 2 2 Peak Tracking Total 5 | . 5 2 2 Tactical Retreats 1 | . 1 . . Traps | -11 -10 -10 -10 ------- Run | Yrd Mat Min Sub Traps Triggered . | . . . . Indirectly . | . . . . Trap Hack Attempts . | . . . . Triggered . | . . . . Disarmed . | . . . . Reprogrammed . | . . . . Reused . | . . . . Traps Extracted . | . . . . Installed . | . . . . Triggered . | . . . . Machines | -11 -10 -10 -10 ---------- Run | Yrd Mat Min Sub Machines Disabled 1 | . . 1 . Max in Single Turn 1 | . . 1 . Machines Repaired . | . . . . Machines Dismantled . | . . . . Machines Sabotaged . | . . . . Overloaded Fab Kills . | . . . . Hacking | -11 -10 -10 -10 --------- Run | Yrd Mat Min Sub Machines Accessed 1 | . 1 . . Terminals 1 | . 1 . . Fabricators . | . . . . Repair Stations . | . . . . Recycling Units . | . . . . Scanalyzers . | . . . . Garrison Access . | . . . . Total Hacks 1 | . 1 . . Successful 1 | . 1 . . Failed . | . . . . Catastrophic . | . . . . Database Lockouts . | . . . . Manual . | . . . . Terminals 1 | . 1 . . Fabricators . | . . . . Repair Stations . | . . . . Recycling Units . | . . . . Scanalyzers . | . . . . Garrison Access . | . . . . Terminal Hacks 1 | . 1 . . Record 1 | . 1 . . Fabricator Hacks . | . . . . Repair Station Hacks . | . . . . Recycling Unit Hacks . | . . . . Scanalyzer . | . . . . Garrison Access Hacks . | . . . . Unauthorized Hacks . | . . . . Terminals . | . . . . Fabricators . | . . . . Repair Stations . | . . . . Recycling Units . | . . . . Scanalyzers . | . . . . Garrison Access . | . . . . Data Cores Recovered . | . . . . Used . | . . . . Hacking Detections . | . . . . Full Trace Events . | . . . . Feedback Events . | . . . . Feedback Blocked . | . . . . Robot Schematics Acquired . | . . . . Robots Built . | . . . . Authchips . | . . . . Time . | . . . . Total Robot Build Rating . | . . . . Part Schematics Acquired . | . . . . Parts Built . | . . . . Authchips . | . . . . Time . | . . . . Total Part Build Rating . | . . . . Part Studies Acquired . | . . . . Parts Repaired . | . . . . Time . | . . . . Parts Recycled . | . . . . Recycled Matter . | . . . . Retrieved Matter . | . . . . Retrieved Components . | . . . . Parts Scanalyzed . | . . . . Part Schematics Acquired . | . . . . Parts Damaged . | . . . . Bothacking | -11 -10 -10 -10 ------------ Run | Yrd Mat Min Sub Used RIF Installer . | . . . . Robots Hacked . | . . . . Non-combat . | . . . . Combat . | . . . . Robot Hacks Applied . | . . . . Relay Couplers Released . | . . . . Fabnet Peak Effective % . | . . . . Robots Rewired . | . . . . Allies Hacked . | . . . . Hacks Repelled . | . . . . Allies | -11 -10 -10 -10 -------- Run | Yrd Mat Min Sub Total Allies . | . . . . Largest Group . | . . . . Highest-Rated Group . | . . . . Highest-Rated Ally . | . . . . Total Orders . | . . . . Ally Attacks . | . . . . Total Damage . | . . . . Kills . | . . . . Allies Corrupted . | . . . . Allies Melted . | . . . . Intel | -11 -10 -10 -10 ------- Run | Yrd Mat Min Sub Active Infowar (turns) . | . . . . Robot Analysis Total . | . . . . Derelict Logs Recovered 1 | . . 1 . Drone Launches . | . . . . Drone Recoveries . | . . . . Exploration | -11 -10 -10 -10 ------------- Run | Yrd Mat Min Sub Turns Passed 1278 | 47 320 867 44 Spaces Moved 613 | 49 116 438 10 Core 230 | 33 . 187 10 Treads 383 | 16 116 251 . Legs . | . . . . Wheels . | . . . . Hover . | . . . . Flight . | . . . . Fastest Speed 50 | 50 160 160 200 Average Speed 166 | 85 160 177 200 Slowest Speed 200 | 160 160 200 200 Overloaded Moves . | . . . . Propulsion Burnouts . | . . . . Robots Hopped . | . . . . Potential Cave-ins . | . . . . Cave-ins Triggered . | . . . . Exploration Rate (%) 32 | 4 32 90 3 Regions Visited 3 Branch Regions 2 Pre-discovered Areas . | . . . . Known Exits Taken . | . . . . Unknown Exits Taken 3 | 1 1 1 . Scrap Searched 1 | . . 1 . Spaces Dug 1 | . . 1 . Terrain Destroyed 1 | . . 1 . Melee 1 | . . 1 . Projectile . | . . . . AOE . | . . . . Terrain Rammed . | . . . . Walls Destroyed . | . . . . Machines Disabled . | . . . . Actions | -11 -10 -10 -10 --------- Run | Yrd Mat Min Sub Total 748 | 54 185 486 23 Wait 23 | . 2 14 7 Move 610 | 48 115 437 10 Hop . | . . . . Pick Up 13 | 3 6 4 . Fast Attach . | . . . . Attach 7 | 3 4 . . Detach . | . . . . Swap 3 | . 1 2 . Drop 1 | . . 1 . Fire 66 | . 57 3 6 Melee 25 | . . 25 . Ram . | . . . . Kick . | . . . . Crush . | . . . . Escape Stasis . | . . . . Rewire . | . . . . Trap . | . . . . Miscellaneous . | . . . . Route ------- -11/Scrapyard -10/Materials -10/Mines (discovered 2 exits: *Mat / [*Sub]) -10/Subcaves History --------- Turn | Location | Event 3 | -11/Scrapyard | Discovered new exit (range 16) 48 | -11/Scrapyard | Entered Materials 309 | -10/Materials | Build established: Mutant 324 | -10/Materials | Discovered new exit (range 6) 368 | -10/Materials | Entered Mines 378 | -10/Mines | Met a Derelict bent on vengeance 386 | -10/Mines | A weapon hastily lodged in a ceiling crevice suddenly fell to the ground 681 | -10/Mines | Identified exit to Materials 799 | -10/Mines | Received a Rocket Launcher from a helpful Derelict 827 | -10/Mines | Core integrity fell below 50% 1196 | -10/Mines | Discovered new exit (range 14) 1235 | -10/Mines | Entered Subcaves 1279 | -10/Subcaves | Destroyed by MU-GDB(R) with Subdweller Shrapnel Launcher Last Messages --------------- EXIT=FOUND T-07 Excavator is excavating. 5R-DB4(g): "VENGEANCE!" U-05 Engineer lays Concrete. U-05 Engineer builds a Wall. U-05 Engineer lays Concrete. U-05 Engineer builds a Wall. U-05 Engineer lays Concrete. U-05 Engineer builds a Wall. U-05 Engineer lays Concrete. U-05 Engineer builds a Wall. U-05 Engineer lays Concrete. LOCATION=UNKNOWN AMBIENT_HEAT=-10 GOAL=ESCAPE OF-9J8(R) knocked back. OF-9J8(R) destroyed. Subatomizers dissect the Sub. Power Source. MU-GDB(R) affixes Scrap Shield Fragment to Scrap Shield. Map ----- +----------------------------------------------------+ | ?????????????????????????????????????????????????? | | ?????????????????????????????????????????????????? | | ?????????????????????????????????????????????????? | | ?????????????????????????????????????????????????? | | ?????????????????????????????????????????????????? | | ?????????????????????????????????????????????????? | | ?????????????????????????????????????????????????? | | ?????????????????????????????????????????????????? | | ?????????????????????????????????????????????????? | | ?????????????????????????????????????????????????? | | ?????????????????????????????????????????????????? | | ?????????????????????????????????????????????????? | | ?????????????????????????????????????????????????? | | ?????????????????????????????????????????????????? | | ?????????????????????????????????????????????????? | | ?????????????????????????????????????????????????? | | ???????????? ????????????????????????????????????? | | ????????????? ??????????????????????????????????? | | ??????????????# ?????##??????????????????????????? | | ??????????????# ##### #???????#?????????????????? | | ???????????????? ##???? ##??#?????????????? | | ?????????????????# ##??# #? #????????????? | | ??????????????????# ### # ##????????????? | | ?????????????????## #????????????? | | ?????????????????# %% #?????????????? | | ???????????????????????# @ &# #??????????????????? | | ???????????????????????### *%##??? #?????????????? | | ???????????????????????### &R!## #??????????????? | | ??????????# ##"# ### % % #??????????????? | | ?????????? " ##??????????????? | | ?????????? ####???????????????? | | ????????????# " ##??????????????????? | | ????????????# ""## #???????????????????? | | ????????????# ""??# #??????????????????? | | ????????????# #""""???## ##??????????????????? | | ??????????????## #?????#######???????????????????? | | ???????????????#?????????????????????????????????? | | ?????????????????????????????????????????????????? | | ?????????????????????????????????????????????????? | | ?????????????????????????????????????????????????? | | ?????????????????????????????????????????????????? | | ?????????????????????????????????????????????????? | | ?????????????????????????????????????????????????? | | ?????????????????????????????????????????????????? | | ?????????????????????????????????????????????????? | | ?????????????????????????????????????????????????? | | ?????????????????????????????????????????????????? | | ?????????????????????????????????????????????????? | | ?????????????????????????????????????????????????? | | ?????????????????????????????????????????????????? | +----------------------------------------------------+ Best States ------------- Heat Dissipation 35 Energy Generation 10 Energy Capacity 350 Matter Stores 300 Matter Capacity 300 Sight Range 16 Terrain Scan Density 10 Evasion (%) 50 Recoil Reduction 2 Item Schematics ----------------- None Robot Schematics ------------------ None Fabricated ------------ Nothing Repaired ---------- Nothing Studied --------- None Alien Tech Used ----------------- None Achievements -------------- None Challenges ------------ None Game ------ Seed WeldingArmageddonGriptreads Manual? 0 Play Time 00:04:51 Cumulative 271.2 hours Start 2026.04.19 @ 16:12:35 End 2026.04.19 @ 16:17:30 Sessions 1 Manual Loads 0 Difficulty Rogue Special Mode None Game No. 717 Rogue 715 Adventurer 2 Explorer 0 Win Type - Total 0 Types 0/0/0/0/0/0/0/0/0/0 Lore% 68 Gallery% 64 Achievement% 44 Wizard Run 0 Options --------- Layout 2 ASCII 0 Keyboard 0 Movement Mouse Keybinds 0 Fullscreen 1 Font 24/Smallcaps Map View 50x44 Zoom Use 0% Tactical HUD 0 Map Filters NONE Filters NONE Steam 1 RUN: c749faae-9e38-4e9d-9536-7954520df913